bitfinex-derivatives/quotes_BTCF0:USTF0_20250426
["timestamp","ask_amount","ask_price","bid_price","bid_amount"]
[1745685818684,0.4744018,94131.0,94130.0,0.18800005]
[1745685821078,1.1960018,94131.0,94130.0,0.18800005]
[1745685827279,1.2348018,94131.0,94130.0,0.18800005]
[1745685828088,1.2348018,94131.0,94130.0,0.14598565]
[1745685828281,0.2124176,94124.0,94123.0,6e-08]
[1745685828485,0.2124312,94118.0,94117.0,0.0373]
[1745685828690,0.8132312,94118.0,94117.0,0.1773]
[1745685829191,0.8132312,94118.0,94117.0,0.3453]
[1745685829689,0.8132312,94118.0,94117.0,0.3839]
[1745685829892,0.8132312,94118.0,94117.0,0.3859]
[1745685831488,0.8142312,94118.0,94117.0,0.3839]
[1745685831895,0.8142312,94118.0,94117.0,0.39197754]
[1745685835298,0.4534312,94118.0,94117.0,0.39197754]
[1745685835500,0.8142312,94118.0,94117.0,0.39197754]
[1745685835694,0.2124537,94108.0,94090.0,0.4088]
[1745685835891,0.8632537,94108.0,94107.0,0.19980401]
[1745685836084,0.8632537,94108.0,94107.0,0.36780401]
[1745685836489,0.8632537,94108.0,94107.0,0.20597198]
[1745685837492,0.9027537,94108.0,94107.0,0.20597198]
[1745685837903,0.9422537,94108.0,94107.0,0.20597198]
[1745685838391,0.9027537,94108.0,94107.0,0.20597198]
[1745685838799,0.9027537,94108.0,94107.0,0.20797198]
[1745685839189,0.9027537,94108.0,94107.0,0.20597198]
[1745685839394,0.9027537,94108.0,94107.0,0.20697198]
[1745685843198,0.90253942,94108.0,94107.0,0.20697198]
[1745685845090,1.26333942,94108.0,94107.0,0.20697198]
[1745685850097,1.22383942,94108.0,94107.0,0.77568798]
[1745685850897,1.22383942,94108.0,94107.0,0.52568798]
[1745685852295,0.3608,94123.0,94114.0,0.2655372]
[1745685852501,0.2124357,94117.0,94116.0,0.2655446]
[1745685852801,0.2124357,94117.0,94116.0,0.3800357]
[1745685852802,0.4124357,94117.0,94116.0,0.3800357]
[1745685853002,0.4124357,94117.0,94116.0,0.4183357]
[1745685853198,0.4124357,94117.0,94116.0,0.5863357]
[1745685855095,0.09,94136.0,94116.0,1.62221199]
[1745685855294,0.2124051,94130.0,94129.0,0.2124018]
[1745685855500,0.2824051,94130.0,94129.0,0.3424018]
[1745685855797,0.07,94130.0,94129.0,0.4486378]
[1745685856195,0.2824041,94130.0,94129.0,0.6166378]
[1745685856409,0.2824041,94130.0,94129.0,0.6919378]
[1745685856609,0.2874041,94130.0,94129.0,0.6929378]
[1745685856797,0.075,94130.0,94129.0,0.6929378]
[1745685856993,0.07,94130.0,94129.0,1.0527378]
[1745685857207,0.00017,94134.0,94133.0,0.2123973]
[1745685857407,0.09017,94134.0,94133.0,0.3623973]
[1745685857608,0.0530835,94161.0,94133.0,1.075792]
[1745685857802,0.4923628,94153.0,94152.0,0.5731544]
[1745685857996,0.4923628,94153.0,94152.0,0.6731544]
[1745685858194,0.4923628,94153.0,94152.0,0.9473664]
[1745685859105,0.4953628,94153.0,94152.0,0.9473664]
[1745685859901,0.4953628,94153.0,94152.0,0.9851664]
[1745685860103,0.4923628,94153.0,94152.0,0.268]
[1745685860300,0.4933628,94153.0,94152.0,0.268]
[1745685860496,0.5667628,94153.0,94152.0,0.268]
[1745685862402,0.5677628,94153.0,94152.0,0.268]
[1745685865406,0.5657628,94153.0,94152.0,0.268]
[1745685865612,0.5667628,94153.0,94152.0,0.268]
[1745685865903,0.5657628,94153.0,94152.0,0.268]
[1745685866106,0.5677628,94153.0,94152.0,0.268]
[1745685866512,0.5657628,94153.0,94152.0,0.268]
[1745685866807,0.5667628,94153.0,94152.0,0.268]
[1745685868101,0.5677628,94153.0,94152.0,0.268]
[1745685869799,0.9285628,94153.0,94152.0,0.268]
[1745685871307,0.9285628,94153.0,94152.0,0.168]
[1745685872707,0.8551628,94153.0,94152.0,0.168]
[1745685872913,0.4943628,94153.0,94152.0,0.5165664]
[1745685874212,0.4943628,94153.0,94152.0,0.5932664]
[1745685874612,0.4923628,94153.0,94152.0,0.5932664]
[1745685874814,0.4933628,94153.0,94152.0,0.5932664]
[1745685875118,0.5323628,94153.0,94152.0,0.5932664]
[1745685877315,0.5313628,94153.0,94152.0,0.5932664]
[1745685878106,0.5323628,94153.0,94152.0,0.5932664]
[1745685878510,0.5313628,94153.0,94152.0,0.5932664]
[1745685878716,0.5323628,94153.0,94152.0,0.5932664]
[1745685880616,0.32,94153.0,94152.0,0.5932664]
[1745685880818,0.281,94153.0,94152.0,0.5932664]
[1745685881018,0.4933522,94153.0,94152.0,0.5932664]
[1745685881717,0.4923522,94153.0,94152.0,0.5942664]
[1745685881912,0.5311522,94153.0,94152.0,0.4502544]
[1745685882109,0.5311522,94153.0,94152.0,0.2379]
[1745685882110,0.5697522,94153.0,94152.0,0.2379]
[1745685882315,0.5697522,94153.0,94152.0,0.199]
[1745685883013,0.5697522,94153.0,94152.0,0.198]
[1745685884414,0.5697522,94153.0,94152.0,0.4103544]
[1745685884618,0.5707522,94153.0,94152.0,0.4103544]
[1745685885012,0.3198,94153.0,94152.0,0.4103544]
[1745685885214,0.3208,94153.0,94152.0,0.4103544]
[1745685885415,0.3208,94153.0,94152.0,0.4880544]
[1745685885622,0.282,94153.0,94152.0,0.4880544]
[1745685885819,0.282,94153.0,94152.0,0.8488544]
[1745685887418,0.28,94153.0,94152.0,0.8498544]
[1745685887824,0.4923522,94153.0,94152.0,0.8498544]
[1745685888612,0.4923522,94153.0,94152.0,0.8488544]
[1745685889822,0.28,94153.0,94152.0,0.8488544]
[1745685890614,0.36966,94172.0,94171.0,0.2123116]
[1745685890812,0.0013,94181.0,94179.0,0.2122936]
[1745685890813,0.0396,94180.0,94179.0,0.2122936]
[1745685891017,0.2596,94180.0,94179.0,0.2422936]
[1745685891229,0.22,94180.0,94179.0,0.4102936]
[1745685891519,0.4322913,94180.0,94179.0,0.4102936]
[1745685891726,0.4322913,94180.0,94179.0,0.4468936]
[1745685891920,0.4714913,94180.0,94179.0,0.5090891]
[1745685892122,0.4714913,94180.0,94179.0,0.4863936]
[1745685892319,0.5170913,94180.0,94179.0,0.4873936]
[1745685894924,0.5170913,94180.0,94179.0,0.49549314]
[1745685896318,0.3048,94180.0,94179.0,0.49549314]
[1745685896719,0.5170913,94180.0,94179.0,0.49549314]
[1745685896921,0.3048,94180.0,94179.0,0.49549314]
[1745685897928,0.226,94180.0,94179.0,0.49549314]
[1745685898132,0.226,94180.0,94179.0,0.60167314]
[1745685898926,0.0052,94188.0,94183.0,0.0530706]
[1745685899129,0.18000001,94188.0,94187.0,0.5730755]
[1745685899334,0.0389,94197.0,94196.0,0.2122552]
[1745685899527,0.25,94197.0,94196.0,0.6630552]
[1745685899724,0.25,94197.0,94196.0,0.7692152]
[1745685900122,0.25,94197.0,94196.0,1.0147152]
[1745685901324,0.25,94197.0,94196.0,0.6188]
[1745685901532,0.462253,94197.0,94196.0,0.258]
[1745685901726,0.462253,94197.0,94196.0,0.4702552]
[1745685901920,0.466253,94197.0,94196.0,0.4702552]
[1745685902324,0.544753,94197.0,94196.0,0.4702552]
[1745685907128,0.544753,94197.0,94196.0,0.258]
[1745685908026,0.544753,94197.0,94196.0,0.4702552]
[1745685912035,0.544753,94197.0,94196.0,0.258]
[1745685912426,0.544753,94197.0,94196.0,0.4702552]
[1745685928941,0.544753,94197.0,94196.0,0.258]
[1745685933745,0.905553,94197.0,94196.0,0.258]
[1745685937551,0.544753,94197.0,94196.0,0.258]
[1745685937749,0.905553,94197.0,94196.0,0.258]
[1745685940157,0.905553,94197.0,94196.0,0.168]
[1745685943160,0.254,94197.0,94196.0,0.4002552]
[1745685943357,0.0013,94211.0,94208.0,0.2652803]
[1745685943658,0.2835227,94211.0,94210.0,0.2122237]
[1745685943848,0.4835227,94211.0,94210.0,0.3122237]
[1745685944048,0.2713,94211.0,94210.0,0.4039237]
[1745685944252,0.2713,94211.0,94210.0,0.5719237]
[1745685944451,0.2773,94211.0,94210.0,0.5719237]
[1745685944854,0.4895214,94211.0,94210.0,0.5719237]
[1745685946547,0.4865214,94211.0,94210.0,0.5719237]
[1745685947151,0.4855214,94211.0,94210.0,0.5719237]
[1745685947547,0.4835214,94211.0,94210.0,0.5719237]
[1745685947754,0.4845214,94211.0,94210.0,0.5719237]
[1745685953156,0.2723,94211.0,94210.0,0.5719237]
[1745685953354,0.4845214,94211.0,94210.0,0.5719237]
[1745685954872,0.2723,94211.0,94210.0,0.5719237]
[1745685955065,1e-08,94218.0,94217.0,0.2122079]
[1745685955367,0.2121764,94232.0,94231.0,0.2121719]
[1745685955559,0.5021764,94232.0,94231.0,0.4447719]
[1745685955962,0.5496764,94232.0,94231.0,0.4447719]
[1745685956165,0.5496764,94232.0,94231.0,0.62064256]
[1745685957958,0.5536764,94232.0,94231.0,0.64037221]
[1745685960565,0.5536764,94232.0,94231.0,0.42820031]
[1745685960765,0.5536764,94232.0,94231.0,0.64037671]
[1745685961869,0.5996764,94232.0,94231.0,0.64037671]
[1745685963266,0.5061764,94232.0,94231.0,0.64037671]
[1745685964562,0.5504764,94232.0,94231.0,0.64037671]
[1745685967871,0.5061764,94232.0,94231.0,0.64037671]
[1745685968672,0.5522764,94232.0,94231.0,0.64037671]
[1745685969573,0.294,94232.0,94231.0,0.64037671]
[1745685970071,0.5061742,94232.0,94231.0,0.64037671]
[1745685970270,0.5543742,94232.0,94231.0,0.64037671]
[1745685973873,0.5543742,94232.0,94231.0,0.59187671]
[1745685979572,0.5543742,94232.0,94231.0,0.54307671]
[1745685991685,0.5543742,94232.0,94231.0,0.49777671]
[1745685999498,0.55456603,94232.0,94231.0,0.49777671]
[1745685999702,0.34239183,94232.0,94231.0,0.49777671]
[1745685999891,0.34239183,94232.0,94231.0,0.54437671]
[1745686000493,0.34239183,94232.0,94231.0,0.59067671]
[1745686000892,0.33839183,94232.0,94231.0,0.59067671]
[1745686001199,0.34039183,94232.0,94231.0,0.59067671]
[1745686003494,0.34039183,94232.0,94231.0,0.99947671]
[1745686004807,0.34039183,94232.0,94231.0,1.36027671]
[1745686005501,0.55256603,94232.0,94231.0,1.31367671]
[1745686006202,0.34039183,94232.0,94231.0,1.31367671]
[1745686006898,0.60156603,94232.0,94231.0,1.31367671]
[1745686007405,0.38939183,94232.0,94231.0,1.31367671]
[1745686010496,0.60156603,94232.0,94231.0,1.31367671]
[1745686014601,0.38939183,94232.0,94231.0,1.31367671]
[1745686016908,0.38939183,94232.0,94231.0,0.95287671]
[1745686026506,0.43499183,94232.0,94231.0,0.95287671]
[1745686027213,0.64716603,94232.0,94231.0,0.69440031]
[1745686028117,0.64716603,94232.0,94231.0,0.52640031]
[1745686028811,0.43499183,94232.0,94231.0,0.73857671]
[1745686029007,0.5300793,94296.0,94254.0,0.2121179]
[1745686029008,0.265162,94255.0,94254.0,0.2121179]
[1745686029202,0.2,94255.0,94254.0,0.01]
[1745686029402,0.5182191,94255.0,94254.0,0.2221246]
[1745686029610,0.306096,94255.0,94254.0,0.2221246]
[1745686030013,0.313096,94255.0,94254.0,0.2221246]
[1745686030207,0.5252184,94255.0,94254.0,0.2221246]
[1745686031105,0.5242184,94255.0,94254.0,0.2221246]
[1745686032509,0.6213184,94255.0,94254.0,0.2221246]
[1745686033310,0.6213184,94255.0,94254.0,0.2121246]
[1745686034013,0.5152224,94255.0,94254.0,0.2121246]
[1745686034713,0.3031,94255.0,94254.0,0.2121246]
[1745686034916,0.5152224,94255.0,94254.0,0.2121246]
[1745686035116,0.3031,94255.0,94254.0,0.2579246]
[1745686035318,0.5152224,94255.0,94254.0,0.2679246]
[1745686036020,0.206,94255.0,94254.0,0.2679246]
[1745686036209,0.206,94255.0,94254.0,0.5296246]
[1745686037318,0.202,94255.0,94254.0,0.5296246]
[1745686040027,0.202,94255.0,94254.0,0.8904246]
[1745686040620,0.0449,94263.0,94262.0,0.2121066]
[1745686040819,0.2849,94263.0,94262.0,0.6629066]
[1745686041425,0.2849,94263.0,94262.0,0.7563066]
[1745686042816,0.2879,94263.0,94262.0,0.7563066]
[1745686044120,0.0052,94278.0,94270.0,0.2120886]
[1745686044324,0.0052,94278.0,94270.0,0.6628886]
[1745686044325,0.21,94271.0,94270.0,0.6628886]
[1745686044529,0.21,94271.0,94270.0,0.7632886]
[1745686045123,0.21,94271.0,94270.0,0.9312886]
[1745686046228,0.214,94271.0,94270.0,0.7632886]
[1745686046630,0.212,94271.0,94270.0,0.7632886]
[1745686047132,0.212,94271.0,94270.0,0.9312886]
[1745686052729,0.2120595,94283.0,94270.0,0.9312886]
[1745686052730,0.3608,94297.0,94289.0,0.2120459]
[1745686052935,0.1,94300.0,94299.0,0.2120234]
[1745686053149,0.37,94300.0,94299.0,0.6528234]
[1745686053727,0.37,94300.0,94299.0,0.66910588]
[1745686053931,0.37,94300.0,94299.0,0.76230588]
[1745686054131,0.0052,94308.0,94305.0,0.2120088]
[1745686054334,0.2120077,94306.0,94305.0,0.2220088]
[1745686054529,0.4620077,94306.0,94305.0,0.2220088]
[1745686055436,0.25,94306.0,94305.0,0.2220088]
[1745686055735,0.4620077,94306.0,94305.0,0.2220088]
[1745686056036,0.5097077,94306.0,94305.0,0.2220088]
[1745686057336,0.0529878,94332.0,94324.0,0.2119672]
[1745686057538,0.301965,94325.0,94324.0,0.2219672]
[1745686058036,0.394865,94325.0,94324.0,0.2219672]
[1745686058231,0.562865,94325.0,94324.0,0.2219672]
[1745686058629,0.613265,94325.0,94324.0,0.2219672]
[1745686058827,0.4013,94325.0,94324.0,0.2219672]
[1745686059028,0.357,94325.0,94324.0,0.2219672]
[1745686059223,0.189,94325.0,94324.0,0.2219672]
[1745686060124,0.400965,94325.0,94324.0,0.2219672]
[1745686060437,0.189,94325.0,94324.0,0.2119672]
[1745686060643,0.1424,94325.0,94324.0,0.2319672]
[1745686061235,0.092,94325.0,94324.0,0.2319672]
[1745686061826,0.09,94325.0,94324.0,0.2319672]
[1745686062027,0.092,94325.0,94324.0,0.2319672]
[1745686062228,0.092,94325.0,94324.0,0.3999672]
[1745686062828,0.0052,94338.0,94330.0,0.0529882]
[1745686063029,0.4571358,94338.0,94337.0,0.572738]
[1745686063234,0.4571358,94338.0,94337.0,0.642738]
[1745686064339,0.2452,94338.0,94337.0,0.642738]
[1745686064638,0.4571358,94338.0,94337.0,1.003538]
[1745686065029,0.2452,94338.0,94337.0,1.003538]
[1745686066241,0.4571358,94338.0,94337.0,0.5988]
[1745686066439,0.5986358,94338.0,94337.0,0.5988]
[1745686066736,0.5986358,94338.0,94337.0,0.168]
[1745686067139,0.2119515,94332.0,94331.0,0.2119469]
[1745686067339,0.1732,94338.0,94337.0,0.211938]
[1745686067541,0.4632,94338.0,94337.0,0.361938]
[1745686068150,0.2952,94338.0,94337.0,0.579438]
[1745686068739,0.0975,94351.0,94350.0,0.2119088]
[1745686068935,0.3375,94351.0,94350.0,0.5927088]
[1745686069136,0.7174066,94351.0,94350.0,0.5927088]
[1745686069444,0.5055,94351.0,94350.0,0.5927088]
[1745686069844,0.7174066,94351.0,94350.0,0.5927088]
[1745686070146,0.5055,94351.0,94350.0,0.5927088]
[1745686070743,0.7174066,94351.0,94350.0,0.5927088]
[1745686070938,0.5055,94351.0,94350.0,0.5927088]
[1745686071142,0.0041,94351.0,94350.0,0.5927088]
[1745686071339,0.2541,94351.0,94350.0,0.6412088]
[1745686072248,0.25,94351.0,94350.0,0.65767195]
[1745686072437,0.25,94351.0,94350.0,0.70637195]
[1745686073446,0.2,94351.0,94350.0,0.70637195]
[1745686073638,0.2,94351.0,94350.0,1.06235995]
[1745686073839,0.2,94351.0,94350.0,0.77149195]
[1745686074636,0.15,94351.0,94350.0,0.77149195]
[1745686075650,0.15019367,94351.0,94350.0,0.77149195]
[1745686076147,0.15019367,94351.0,94350.0,0.87747995]
[1745686076345,0.15019367,94351.0,94350.0,1.65741995]
[1745686076647,0.0052,94398.0,94397.0,0.2118033]
[1745686076944,0.2852,94398.0,94397.0,0.7926033]
[1745686077150,0.2852,94398.0,94397.0,0.8606033]
[1745686077848,0.2852,94398.0,94397.0,2.2505193]
[1745686077849,0.0752,94398.0,94397.0,2.2505193]
[1745686078151,0.0052,94398.0,94397.0,1.48189927]
[1745686078334,0.0052,94398.0,94397.0,1.54725927]
[1745686078842,0.0152,94398.0,94397.0,1.16415997]
[1745686079045,0.395001,94398.0,94397.0,1.06151997]
[1745686080435,0.395001,94398.0,94397.0,0.99615997]
[1745686080641,0.722601,94398.0,94397.0,0.13105997]
[1745686080941,0.2118347,94383.0,94382.0,0.3608]
[1745686081138,0.2118347,94383.0,94382.0,0.4508]
[1745686081139,0.3818347,94383.0,94382.0,0.4508]
[1745686081547,0.3818347,94383.0,94382.0,0.09803693]
[1745686081741,0.4753347,94383.0,94382.0,0.45883693]
[1745686082246,0.6433347,94383.0,94382.0,0.46083693]
[1745686084943,0.6443347,94383.0,94382.0,0.45883693]
[1745686086747,0.6443347,94383.0,94382.0,0.09803693]
[1745686090354,0.6433347,94383.0,94382.0,0.10003693]
[1745686090951,0.6433347,94383.0,94382.0,0.09903693]
[1745686092044,0.6433347,94383.0,94355.0,0.06532]
[1745686092045,0.2118729,94366.0,94355.0,0.06532]
[1745686092239,0.4518729,94366.0,94365.0,0.3908]
[1745686092439,0.4518729,94366.0,94365.0,0.39872265]
[1745686093040,0.4985729,94366.0,94365.0,0.39872265]
[1745686093237,0.6665729,94366.0,94365.0,0.39872265]
[1745686093439,0.6665729,94366.0,94365.0,0.61059775]
[1745686093644,0.6198729,94366.0,94365.0,0.61059775]
[1745686094148,0.6198729,94366.0,94365.0,0.61159775]
[1745686094454,0.6198729,94366.0,94365.0,0.66029775]
[1745686094945,0.408,94366.0,94365.0,0.66029775]
[1745686095247,0.6198729,94366.0,94365.0,0.66029775]
[1745686095444,0.6198729,94366.0,94365.0,0.70579775]
[1745686096240,0.6198729,94366.0,94365.0,0.44842265]
[1745686096844,0.7101729,94366.0,94365.0,0.44842265]
[1745686097044,0.6198729,94366.0,94365.0,0.44842265]
[1745686097244,0.408,94366.0,94365.0,0.66029775]
[1745686097638,0.6198729,94366.0,94365.0,0.66029775]
[1745686106042,0.6198729,94366.0,94365.0,0.44842265]
[1745686106544,0.6198729,94366.0,94365.0,0.66029775]
[1745686106943,0.6675729,94366.0,94365.0,0.44842265]
[1745686108357,0.6198729,94366.0,94365.0,0.44842265]
[1745686108656,0.6198729,94366.0,94365.0,0.08762265]
[1745686108850,0.6198729,94366.0,94365.0,0.29949775]
[1745686109152,0.408,94366.0,94365.0,0.29949775]
[1745686110253,0.6198729,94366.0,94365.0,0.29949775]
[1745686113654,0.408,94366.0,94365.0,0.29949775]
[1745686113850,0.6198729,94366.0,94365.0,0.29949775]
[1745686114960,0.6198729,94366.0,94365.0,0.31515237]
[1745686115957,0.6198729,94366.0,94365.0,0.29949775]
[1745686116854,0.408,94366.0,94365.0,0.29949775]
[1745686117061,0.188,94366.0,94365.0,0.66029775]
[1745686123261,0.3998729,94366.0,94365.0,0.66029775]
[1745686123456,0.188,94366.0,94365.0,0.66029775]
[1745686126258,0.3998729,94366.0,94365.0,0.66029775]
[1745686126565,0.188,94366.0,94365.0,0.66029775]
[1745686130365,0.3998729,94366.0,94365.0,0.66029775]
[1745686130565,0.2118886,94359.0,94350.0,0.06965529]
[1745686130766,0.5018886,94359.0,94358.0,0.1593687]
[1745686131074,0.29,94359.0,94358.0,0.36348044]
[1745686131272,0.6698886,94359.0,94358.0,0.36348044]
[1745686131468,0.7647886,94359.0,94358.0,0.36348044]
[1745686131771,0.7647886,94359.0,94358.0,0.36648044]
[1745686132567,0.5057,94359.0,94358.0,0.36348044]
[1745686132772,0.2957,94359.0,94358.0,0.36448044]
[1745686133262,0.2957,94359.0,94358.0,0.72628044]
[1745686134475,0.5075886,94359.0,94358.0,0.72628044]
[1745686134678,0.5075886,94359.0,94358.0,0.72428044]
[1745686134974,0.2957,94359.0,94358.0,0.72628044]
[1745686135165,0.2957,94359.0,94358.0,0.7341668]
[1745686135470,0.5075886,94359.0,94358.0,0.7341668]
[1745686138083,0.5075886,94359.0,94358.0,0.7321668]
[1745686138271,0.5075886,94359.0,94358.0,0.7351668]
[1745686138684,0.5075886,94359.0,94358.0,0.7321668]
[1745686138872,0.5075886,94359.0,94358.0,0.7341668]
[1745686139278,0.5075886,94359.0,94358.0,0.3733668]
[1745686139581,0.5075886,94359.0,94358.0,0.161476]
[1745686140683,0.5075886,94359.0,94358.0,0.3733668]
[1745686141268,0.5075886,94359.0,94358.0,0.3723668]
[1745686142777,0.5075886,94359.0,94358.0,0.3713668]
[1745686143075,0.5075886,94359.0,94358.0,0.3733668]
[1745686144278,0.248,94359.0,94358.0,0.7341668]
[1745686144884,0.248,94359.0,94358.0,0.8264668]
[1745686145086,0.248,94359.0,94358.0,0.8254668]
[1745686145986,0.168,94359.0,94358.0,0.8254668]
[1745686146295,0.0531343,94373.0,94358.0,0.8254668]
[1745686146296,0.2118817,94368.0,94367.0,0.2118637]
[1745686146591,0.3418817,94368.0,94367.0,0.3048311]
[1745686146785,0.13,94368.0,94367.0,0.3048311]
[1745686147191,0.5098684,94368.0,94367.0,0.3048311]
[1745686147579,0.5108684,94368.0,94367.0,0.3048311]
[1745686148593,0.5098684,94368.0,94367.0,0.3048311]
[1745686148788,0.5098684,94368.0,94367.0,0.3058311]
[1745686150595,0.5098684,94368.0,94367.0,0.2528637]
[1745686153498,0.5098684,94368.0,94367.0,0.6136637]
[1745686153684,0.298,94368.0,94367.0,0.6136637]
[1745686157899,0.298,94368.0,94367.0,0.2528637]
[1745686158094,0.298,94368.0,94367.0,0.6136637]
[1745686161505,0.298,94368.0,94367.0,0.2528637]
[1745686161703,0.298,94368.0,94367.0,0.6136637]
[1745686166413,0.5098684,94368.0,94367.0,0.6136637]
[1745686166608,0.5098684,94368.0,94367.0,0.6635637]
[1745686167004,0.298,94368.0,94367.0,0.6635637]
[1745686167404,0.298,94368.0,94367.0,0.7099637]
[1745686167713,0.5098684,94368.0,94367.0,0.7099637]
[1745686173308,0.298,94368.0,94367.0,0.7099637]
[1745686179118,0.13,94368.0,94367.0,0.7099637]
[1745686180211,0.298,94368.0,94367.0,0.7099637]
[1745686180406,0.298,94368.0,94367.0,0.3491637]
[1745686181018,0.298,94368.0,94367.0,0.3993637]
[1745686184125,0.3459,94368.0,94367.0,0.3993637]
[1745686184621,0.5577684,94368.0,94367.0,0.3993637]
[1745686184824,0.3459,94368.0,94367.0,0.3993637]
[1745686185922,0.5577684,94368.0,94367.0,0.3993637]
[1745686191022,0.5577684,94368.0,94367.0,0.0909]
[1745686191218,0.2118886,94359.0,94358.0,0.009476]
[1745686191420,0.4318886,94359.0,94358.0,0.159476]
[1745686191615,0.4318886,94359.0,94358.0,0.3713668]
[1745686192016,0.4809886,94359.0,94358.0,0.3713668]
[1745686192217,0.6489886,94359.0,94358.0,0.3713668]
[1745686192517,0.6489886,94359.0,94358.0,0.3743668]
[1745686192717,0.6985886,94359.0,94358.0,0.3743668]
[1745686192918,0.6985886,94359.0,94358.0,0.3733668]
[1745686193722,0.6985886,94359.0,94358.0,0.4237668]
[1745686194318,0.6985886,94359.0,94358.0,0.4217668]
[1745686194615,0.6985886,94359.0,94358.0,0.4227668]
[1745686194816,0.6985886,94359.0,94358.0,0.4217668]
[1745686195021,0.6985886,94359.0,94358.0,0.4227668]
[1745686197325,0.6985886,94359.0,94358.0,0.4217668]
[1745686197519,0.6985886,94359.0,94358.0,0.4227668]
[1745686197719,0.6985886,94359.0,94358.0,0.42117716]
[1745686197927,0.6985886,94359.0,94358.0,0.42017716]
[1745686198127,0.6985886,94359.0,94358.0,0.42117716]
[1745686198424,0.6985886,94359.0,94358.0,0.42017716]
[1745686198625,0.6985886,94359.0,94358.0,0.42117716]
[1745686201924,0.6494886,94359.0,94358.0,0.42117716]
[1745686204717,0.6494886,94359.0,94358.0,0.42217716]
[1745686207831,0.6494886,94359.0,94358.0,0.42117716]
[1745686208331,0.6494886,94359.0,94358.0,0.42017716]
[1745686208533,0.6494886,94359.0,94358.0,0.42217716]
[1745686210336,0.15926895,94359.0,94358.0,0.52815716]
[1745686210541,0.04024999,94359.0,94358.0,0.88795716]
[1745686211038,0.04024999,94359.0,94358.0,0.88695716]
[1745686211238,0.00017,94363.0,94362.0,0.2118818]
[1745686211441,0.00017,94363.0,94362.0,0.3618818]
[1745686211630,0.2118439,94379.0,94378.0,0.2118414]
[1745686211829,0.3018439,94379.0,94378.0,0.2718414]
[1745686212342,0.4698439,94379.0,94378.0,0.06]
[1745686212637,0.4698439,94379.0,94378.0,0.2718459]
[1745686213539,0.258,94379.0,94378.0,0.2718459]
[1745686213740,0.258,94379.0,94378.0,0.4163459]
[1745686213932,0.4718437,94379.0,94378.0,0.4163459]
[1745686217949,0.4718437,94379.0,94378.0,0.2045]
[1745686218143,0.4718437,94379.0,94378.0,0.108]
[1745686218338,0.8326437,94379.0,94378.0,0.108]
[1745686219147,0.93859971,94379.0,94378.0,0.06]
[1745686219347,0.2118818,94362.0,94361.0,0.0529]
[1745686219653,0.5018818,94362.0,94361.0,0.3647841]
[1745686220151,0.6698818,94362.0,94361.0,0.3647841]
[1745686220555,0.6698818,94362.0,94361.0,0.3667841]
[1745686221050,0.6698818,94362.0,94361.0,0.4631841]
[1745686233661,0.458,94362.0,94361.0,0.4631841]
[1745686234559,0.458,94362.0,94361.0,0.8239841]
[1745686235862,0.6698818,94362.0,94361.0,0.8239841]
[1745686236166,0.458,94362.0,94361.0,0.8239841]
[1745686236560,0.6698818,94362.0,94361.0,0.8239841]
[1745686237764,0.458,94362.0,94361.0,0.8239841]
[1745686238670,0.458,94362.0,94361.0,0.4631841]
[1745686238962,0.6698818,94362.0,94361.0,0.4631841]
[1745686242265,0.458,94362.0,94361.0,0.4631841]
[1745686246472,0.458,94362.0,94361.0,0.47974586]
[1745686247961,0.458,94362.0,94361.0,0.47974592]
[1745686251371,0.458,94362.0,94361.0,0.4631841]
[1745686251576,0.458,94362.0,94361.0,0.47974595]
[1745686253161,0.458,94362.0,94361.0,0.47974572]
[1745686253360,0.168,94362.0,94361.0,0.47974572]
[1745686254269,0.00017,94366.0,94365.0,0.2118751]
[1745686254463,0.03017,94366.0,94365.0,0.74923672]
[1745686254662,0.03,94366.0,94365.0,0.83923672]
[1745686255066,0.03,94366.0,94365.0,0.83923576]
[1745686256369,0.03,94366.0,94365.0,0.8226751]
[1745686256565,0.03,94366.0,94365.0,0.8236751]
[1745686261769,0.2418729,94366.0,94365.0,0.8236751]
[1745686261967,0.2864729,94366.0,94365.0,0.251]
[1745686262171,0.4244729,94366.0,94365.0,0.2061]
[1745686262367,0.7044729,94366.0,94365.0,0.2061]
[1745686263871,0.7044729,94366.0,94365.0,0.22266194]
[1745686264280,0.7044729,94366.0,94365.0,0.2061]
[1745686266769,0.2118886,94359.0,94358.0,0.00788636]
[1745686267073,0.8526886,94359.0,94358.0,0.04]
[1745686267668,0.9447886,94359.0,94358.0,0.04]
[1745686267870,0.2119066,94351.0,94343.0,0.052981]
[1745686268075,0.4519066,94351.0,94350.0,0.15]
[1745686268769,0.5885066,94351.0,94350.0,0.37544056]
[1745686269179,0.7565066,94351.0,94350.0,0.37544056]
[1745686269369,0.7565066,94351.0,94350.0,0.38338791]
[1745686269980,0.7565066,94351.0,94350.0,0.17147911]
[1745686271176,0.7565066,94351.0,94347.0,0.0442]
[1745686271177,0.211929,94341.0,94329.0,0.0529886]
[1745686271476,0.812729,94341.0,94340.0,0.06480084]
[1745686271777,0.812729,94341.0,94340.0,0.05105999]
[1745686272169,0.980729,94341.0,94340.0,0.05105999]
[1745686272365,1.027229,94341.0,94340.0,0.27933993]
[1745686272572,1.071429,94341.0,94340.0,0.27933993]
[1745686274167,1.071429,94341.0,94340.0,0.28729841]
[1745686274366,1.071429,94341.0,94340.0,0.28429841]
[1745686274975,1.071429,94341.0,94340.0,0.28529841]
[1745686275566,1.071429,94341.0,94340.0,0.28429841]
[1745686276078,1.071429,94341.0,94340.0,0.28529841]
[1745686277080,1.071429,94341.0,94340.0,0.07336711]
[1745686277880,1.071429,94341.0,94340.0,0.28529841]
[1745686278174,1.071429,94341.0,94340.0,0.07236711]
[1745686278375,1.17742901,94341.0,94340.0,0.05901847]
[1745686278581,1.21550001,94341.0,94322.0,0.0462]
[1745686278883,0.2119695,94323.0,94322.0,0.198]
[1745686279067,0.6699695,94323.0,94322.0,0.198]
[1745686279272,0.6699695,94323.0,94322.0,0.4099717]
[1745686279470,0.6699695,94323.0,94322.0,0.4552717]
[1745686279671,0.7179695,94323.0,94322.0,0.4552717]
[1745686280879,0.7179695,94323.0,94322.0,0.4582717]
[1745686281379,0.7179695,94323.0,94322.0,0.4552717]
[1745686281585,0.7179695,94323.0,94322.0,0.4582717]
[1745686281775,0.7179695,94323.0,94322.0,0.46632485]
[1745686282090,0.7179695,94323.0,94322.0,0.49119412]
[1745686285378,0.6699695,94323.0,94322.0,0.27922242]
[1745686285775,0.6699695,94323.0,94322.0,0.49119412]